bitfinex/quotes_ETHUSD_20250518
["timestamp","ask_amount","ask_price","bid_price","bid_amount"]
[1747609764859,4.09617826,2441.3,2441.2,9.323]
[1747609765185,12.09577696,2441.6,2440.9,17.684]
[1747609765186,4.09651386,2441.1,2440.9,17.684]
[1747609765685,4.09668168,2441.0,2440.9,17.684]
[1747609766876,12.09668168,2441.0,2440.9,17.684]
[1747609768198,0.7905,2441.2,2440.8,9.323]
[1747609768392,9.291,2442.3,2441.1,4.09636971]
[1747609768590,4.09553034,2441.7,2441.1,17.72695683]
[1747609768794,4.09569522,2441.6,2441.1,21.7824115]
[1747609768960,4.09537797,2441.8,2441.1,21.7824115]
[1747609769169,9.29,2442.4,2441.3,0.7787]
[1747609769406,4.09492149,2442.1,2441.5,0.55]
[1747609769696,4.09433344,2442.4,2441.7,4.09546446]
[1747609769996,4.09473315,2442.2,2441.7,4.09546446]
[1747609770199,4.09455728,2442.3,2441.5,0.55]
[1747609770374,0.05118229,2442.2,2441.6,1.3935797]
[1747609770692,4.09532337,2441.9,2441.7,9.29]
[1747609770895,4.09513091,2442.0,2441.7,9.29]
[1747609771302,0.7541,2442.5,2441.7,9.29]
[1747609771506,0.8023,2442.8,2441.9,0.55]
[1747609771666,4.09389056,2442.7,2442.2,4.09458564]
[1747609771866,4.09401202,2442.6,2442.3,9.29]
[1747609772384,4.09391239,2442.7,2442.3,9.29]
[1747609772590,8.0,2443.0,2442.3,9.29]
[1747609772798,4.09396188,2442.7,2442.3,9.29]
[1747609773260,0.8023,2443.1,2442.3,13.38447022]
[1747609773468,4.09383898,2442.7,2442.4,2.38290191]
[1747609773687,4.09374325,2442.8,2442.4,2.38290191]
[1747609773897,4.09335276,2443.0,2442.4,6.47709914]
[1747609774103,4.09357731,2442.9,2442.4,6.47709914]
[1747609774278,4.09368857,2442.8,2442.4,2.38290191]
[1747609775164,0.8259,2443.4,2442.5,1.57673832]
[1747609775364,4.09291035,2443.3,2442.7,4.09371468]
[1747609775601,0.8259,2443.8,2443.0,0.7853]
[1747609775810,4.09229853,2443.7,2443.1,4.6431517]
[1747609776111,4.09218269,2443.7,2443.1,0.55]
[1747609776274,4.09218269,2443.7,2443.2,0.54285836]
[1747609776475,4.09236071,2443.6,2443.3,9.287]
[1747609776709,4.0925132,2443.5,2443.3,9.287]
[1747609777012,4.09240329,2443.6,2443.3,9.287]
[1747609777210,1.134643,2444.3,2443.3,9.287]
[1747609777413,1.134643,2444.3,2443.4,0.98298584]
[1747609777414,4.09207756,2443.8,2443.4,0.98298584]
[1747609777613,4.09217156,2443.7,2443.4,0.98298584]
[1747609778372,12.09149775,2444.1,2443.5,9.287]
[1747609778373,4.0923228,2443.6,2443.5,9.287]
[1747609778612,4.09229013,2443.7,2443.5,9.287]
[1747609778913,4.86583721,2444.8,2443.7,0.55]
[1747609779119,4.09014683,2444.9,2444.0,0.7542]
[1747609779278,17.58468162,2445.0,2444.1,9.3279057]
[1747609779476,4.09083749,2444.5,2444.1,9.287]
[1747609779681,4.09101076,2444.4,2444.1,10.34612]
[1747609779981,4.09066539,2444.6,2444.1,10.34612]
[1747609779982,4.09123688,2444.3,2444.1,9.287]
[1747609780181,4.09045028,2444.8,2444.1,9.287]
[1747609780182,4.0910173,2444.4,2444.1,9.287]
[1747609780517,4.09123976,2444.3,2444.1,9.287]
[1747609781141,10.0474,2445.1,2444.1,9.287]
[1747609781441,4.09131822,2444.2,2444.1,9.286]
[1747609781805,4.09131822,2444.2,2443.8,17.681]
[1747609781806,4.09182045,2443.9,2443.8,17.681]
[1747609782138,4.091784,2444.0,2443.6,9.286]
[1747609782335,4.09165637,2444.0,2443.7,0.822]
[1747609782542,4.09190986,2443.9,2443.7,0.822]
[1747609782738,4.09198788,2443.8,2443.7,0.822]
[1747609782941,4.09253493,2443.5,2443.4,0.8159]
[1747609783139,0.8063,2443.9,2443.4,9.284]
[1747609783435,0.8063,2444.4,2443.4,10.2124]
[1747609783636,4.09207942,2443.8,2443.4,10.2124]
[1747609784027,4.09162781,2444.1,2443.5,5.45835443]
[1747609784229,8.0,2444.0,2443.5,5.45835443]
[1747609784431,4.09230701,2443.7,2443.5,1.3659]
[1747609784749,12.09178855,2444.0,2443.6,9.284]
[1747609784909,4.09183578,2443.9,2443.6,9.284]
[1747609785110,4.09183578,2443.9,2443.5,1.97373]
[1747609785111,4.09182045,2443.9,2443.5,0.8159]
[1747609785329,4.09215758,2443.7,2443.6,9.283]
[1747609786238,4.0923228,2443.6,2443.5,0.8159]
[1747609786439,4.09282527,2443.3,2443.2,0.8159]
[1747609786659,8.0,2443.8,2443.2,10.0989]
[1747609786989,6.12,2443.9,2443.2,12.87669]
[1747609787240,4.091653,2444.1,2443.6,4.90815154]
[1747609787435,4.09167501,2444.0,2443.7,9.283]
[1747609787635,4.09189258,2443.9,2443.7,9.283]
[1747609787932,4.09198788,2443.8,2443.7,9.283]
[1747609788132,4.09149985,2444.1,2443.7,9.283]
[1747609788439,4.09198788,2443.8,2443.7,9.283]
[1747609789639,4.09265777,2443.4,2443.3,0.8086]
[1747609789843,8.0,2443.6,2443.1,17.679]
[1747609790005,4.09299279,2443.2,2443.1,26.962]
[1747609790648,4.09249028,2443.5,2443.2,0.8086]
[1747609791334,4.09282527,2443.3,2443.2,0.8086]
[1747609791522,4.09299279,2443.2,2443.1,26.962]
[1747609792444,4.09299279,2443.2,2443.1,9.283]
[1747609792613,18.21299279,2443.2,2443.1,9.283]
[1747609792808,19.03369279,2443.2,2443.1,9.283]
[1747609793003,4.09399819,2442.6,2442.5,0.8001]
[1747609793220,4.09399819,2442.6,2442.5,9.283]
[1747609793449,12.09399819,2442.6,2442.5,9.283]
[1747609794056,4.09466874,2442.2,2442.1,9.283]
[1747609794408,9.256,2442.8,2442.1,11.0114]
[1747609794409,0.30624137,2442.8,2442.1,11.0114]
[1747609795043,4.09436142,2442.4,2442.1,11.0114]
[1747609795848,4.0942425,2442.5,2442.1,11.0114]
[1747609796217,4.09345562,2443.0,2442.2,0.55]
[1747609796218,9.254,2443.0,2442.2,0.55]
[1747609796435,0.8207,2443.2,2442.4,0.55]
[1747609796618,9.254,2443.1,2442.3,1.15614]
[1747609796831,0.8207,2443.2,2442.3,1.15614]
[1747609797012,9.253,2443.4,2442.6,0.55]
[1747609797354,9.253,2443.7,2442.9,0.55]
[1747609797663,9.253,2443.7,2443.0,0.46435643]
[1747609797664,4.09306972,2443.2,2443.0,0.46435643]
[1747609797950,4.09249028,2443.5,2442.8,0.55]
[1747609798269,4.09281345,2443.4,2443.2,0.8001]
[1747609798461,4.09281345,2443.4,2443.3,9.285]
[1747609798667,4.09332787,2443.0,2442.9,9.285]
[1747609798813,0.8207,2443.7,2442.9,11.981]
[1747609799155,4.09332787,2443.0,2442.9,9.285]
[1747609799845,4.09326213,2443.1,2442.9,9.285]
[1747609800058,4.91286373,2443.7,2442.9,9.285]
[1747609800357,4.09332787,2443.0,2442.9,9.285]
[1747609801256,12.09332787,2443.0,2442.9,9.285]
[1747609801418,21.34232787,2443.0,2442.9,9.285]
[1747609801844,4.09332787,2443.0,2442.9,9.285]
[1747609802844,4.09399819,2442.6,2442.5,9.252]
[1747609803027,4.09517179,2441.9,2441.8,9.252]
[1747609803823,12.9075395,2441.8,2441.7,0.33058872]
[1747609804019,13.2146134,2441.8,2441.7,0.33058872]
[1747609804241,19.3346134,2441.8,2441.7,0.33058872]
[1747609805123,19.8775134,2441.8,2441.7,0.33058872]
[1747609806101,4.09567496,2441.6,2441.5,0.42948189]
[1747609806309,4.09668168,2441.0,2440.9,9.252]
[1747609806819,12.09668168,2441.0,2440.9,9.252]
[1747609807334,12.09668168,2441.0,2440.5,17.677]
[1747609807335,4.0973531,2440.6,2440.5,9.254]
[1747609807680,13.3433531,2440.6,2440.5,9.254]
[1747609808185,4.0972531,2440.7,2440.5,9.254]
[1747609808391,4.0973531,2440.6,2440.5,9.254]
[1747609810517,4.09726473,2440.7,2440.5,9.254]
[1747609810842,4.0973531,2440.6,2440.5,9.254]
[1747609811381,9.244,2440.9,2440.5,9.254]
[1747609811598,4.09692427,2440.9,2440.5,10.1794]
[1747609811791,4.09702217,2440.8,2440.5,9.254]
[1747609812203,4.09724896,2440.7,2440.5,9.254]
[1747609812538,4.09702819,2440.8,2440.5,9.254]
[1747609813094,17.244,2441.0,2440.5,9.254]
[1747609813515,4.09728354,2440.7,2440.5,9.254]
[1747609813838,4.09693388,2440.9,2440.5,9.254]
[1747609815228,8.0,2441.0,2440.6,0.7742]
[1747609815639,4.0970491,2440.8,2440.6,0.7742]
[1747609815866,12.09672801,2441.0,2440.6,0.7742]
[1747609816059,4.09594017,2441.5,2440.6,0.7742]
[1747609816060,6.12,2441.6,2440.7,0.55]
[1747609816225,0.7624,2442.5,2441.2,0.55]
[1747609816549,4.09526442,2441.9,2441.4,0.55]
[1747609816752,8.0,2442.3,2441.4,6.44603261]
[1747609817071,4.09509314,2442.0,2441.5,4.09583843]
[1747609817549,4.09544921,2441.8,2441.4,1.80003897]
[1747609817910,1.07354086,2442.5,2441.6,1.3624]
[1747609818248,4.09383059,2442.7,2442.1,0.8124]
[1747609818410,4.09383059,2442.7,2442.2,9.258]
[1747609818411,0.05117636,2442.7,2442.2,9.258]
[1747609818616,4.09443545,2442.4,2442.2,9.258]
[1747609819037,4.09450108,2442.3,2442.2,9.258]
[1747609819717,4.09421932,2442.5,2442.2,9.258]
[1747609820052,4.09450108,2442.3,2442.2,9.258]
[1747609820551,12.09450108,2442.3,2442.2,9.258]
[1747609820844,21.33050108,2442.3,2442.2,9.258]
[1747609821416,12.09450108,2442.3,2442.2,9.258]
[1747609821748,6.12,2442.8,2442.2,9.258]
[1747609821940,15.354,2442.8,2442.2,9.258]
[1747609822144,4.09450108,2442.3,2442.2,9.258]
[1747609822861,12.09450108,2442.3,2442.2,9.258]
[1747609823451,27.44650108,2442.3,2442.2,9.258]
[1747609823650,1.10497524,2442.5,2442.0,9.257]
[1747609823651,6.12,2442.5,2442.0,9.257]
[1747609823849,4.09481956,2442.2,2442.0,9.257]
[1747609824036,4.09483641,2442.1,2442.0,9.257]
[1747609825571,18.21483641,2442.1,2442.0,9.257]
[1747609828848,27.44083641,2442.1,2442.0,9.257]
[1747609829053,18.21483641,2442.1,2442.0,9.257]
[1747609829279,27.44083641,2442.1,2442.0,9.257]
[1747609830082,18.21483641,2442.1,2442.0,9.257]
[1747609831891,4.09483641,2442.1,2442.0,9.257]
[1747609832855,6.12,2442.6,2442.0,14.35688466]
[1747609833057,6.12,2443.1,2442.4,4.09432903]
[1747609833256,6.12,2443.3,2442.7,0.7813]
[1747609833492,6.12,2443.3,2443.0,4.09330296]
[1747609833789,8.0,2443.5,2443.2,0.7813]
[1747609833985,8.0,2443.8,2443.2,0.7813]
[1747609834159,6.12,2443.9,2443.3,0.04092464]
[1747609834361,4.09201122,2443.8,2443.3,4.13365978]
[1747609834571,6.12,2443.9,2443.2,0.7813]
[1747609834784,10.21187973,2443.9,2443.2,4.8741909]
[1747609834965,12.09198788,2443.8,2443.2,4.87426712]
[1747609835173,6.12,2444.5,2443.6,4.09230355]
[1747609835475,4.43102355,2444.5,2443.9,4.64169279]
[1747609835651,4.0914519,2444.2,2443.9,0.55]
[1747609836390,4.09157492,2444.1,2443.9,0.55]
[1747609836576,4.09182045,2443.9,2443.8,0.7813]
[1747609836778,4.09182045,2443.9,2443.7,27.32023035]
[1747609836779,4.09198788,2443.8,2443.7,26.908]
[1747609837584,12.09198788,2443.8,2443.7,26.908]
[1747609838985,12.09198788,2443.8,2443.7,9.223]
[1747609839352,4.09316032,2443.1,2443.0,17.68]
[1747609839557,4.09316032,2443.1,2443.0,26.902]
[1747609840389,4.09303981,2443.2,2443.0,29.5922]
[1747609840591,4.09316032,2443.1,2443.0,29.5922]
[1747609840756,4.09316032,2443.1,2443.0,26.902]
[1747609841390,4.91640404,2443.7,2443.0,26.902]
[1747609841391,0.8242,2443.7,2443.0,26.902]
[1747609841570,10.21170284,2444.0,2443.1,0.04092623]
[1747609841571,4.09236716,2443.6,2443.1,0.04092623]
[1747609841966,4.09209765,2443.8,2443.1,4.13405458]
[1747609841967,12.09228035,2443.7,2443.1,4.13405458]
[1747609842170,4.09234078,2443.6,2443.2,1.3551]
[1747609842609,4.09234078,2443.6,2443.3,0.5448195]
[1747609842893,10.2102824,2444.9,2443.4,9.79892079]
[1747609843221,4.09094812,2444.5,2443.9,4.09177378]
[1747609843429,8.0,2444.8,2444.0,26.898]
[1747609843694,4.09138038,2444.2,2444.0,26.898]
[1747609843890,4.0896839,2445.2,2444.2,5.44620618]
[1747609844063,4.09065099,2444.6,2444.2,0.8049]
[1747609844258,4.09083638,2444.5,2444.2,0.8049]
[1747609844475,4.09014683,2444.9,2444.3,0.04090724]
[1747609844673,4.09047281,2444.8,2444.3,0.76268538]
[1747609844874,4.08999279,2445.0,2444.5,4.09066621]
[1747609845087,6.12,2445.3,2444.7,0.7722]
[1747609845288,10.20905144,2445.6,2445.0,4.08985962]
[1747609845475,6.12,2445.6,2445.1,9.26189139]
[1747609845798,12.08917058,2445.5,2445.2,0.04089358]
[1747609846103,6.12,2445.9,2445.3,0.7589]
[1747609846267,4.08882494,2445.7,2445.3,0.7589]
[1747609846466,4.08865094,2445.8,2445.3,0.7589]
[1747609846467,4.08930267,2445.5,2445.3,0.7589]
[1747609846681,4.08931054,2445.4,2445.3,0.7589]
[1747609846899,10.20850634,2445.9,2445.3,0.7589]
[1747609847106,6.12,2445.9,2445.4,0.55]
[1747609847307,6.12,2445.9,2445.4,0.59088937]
[1747609847494,4.08825589,2446.1,2445.4,0.5980641]
[1747609847698,4.08730818,2446.6,2446.0,0.7589]
[1747609847882,4.0878084,2446.3,2446.1,9.219]
[1747609848079,6.12,2446.8,2446.1,9.219]
[1747609848301,0.003113,2447.0,2446.2,0.55649377]
[1747609848506,0.003113,2447.0,2446.9,4.63680371]
[1747609848675,0.003113,2447.0,2446.9,41.52056019]
[1747609848868,0.003113,2447.0,2446.9,41.47970371]
[1747609849188,0.003113,2447.0,2446.9,45.19926863]
[1747609849528,0.003113,2447.0,2446.9,49.29746133]
[1747609849802,0.003113,2447.0,2446.9,57.29746133]
[1747609849988,0.00153597,2447.0,2446.9,57.29746133]
[1747609850191,16.19,2450.0,2446.9,57.29746133]
[1747609850192,4.0835084,2448.9,2447.7,0.55]
[1747609850502,4.0835084,2448.9,2447.9,0.55]
[1747609850503,0.30626462,2448.6,2447.9,0.55]
[1747609850802,4.08483568,2448.1,2447.9,0.90866788]
[1747609851008,8.0,2448.4,2447.8,26.883]
[1747609851183,0.30626462,2448.3,2447.8,26.883]
[1747609851504,4.08509783,2448.0,2447.9,0.00477294]
[1747609853308,4.08509783,2448.0,2447.9,9.21677294]
[1747609853606,4.08481119,2448.1,2447.9,9.21677294]
[1747609853794,4.08496732,2448.0,2447.9,9.21677294]
[1747609855006,8.0,2448.5,2447.9,9.76677294]
[1747609855224,4.08312552,2449.2,2447.9,9.76677294]
[1747609855225,4.08375473,2448.8,2448.2,0.55]
[1747609855424,4.08308701,2449.2,2448.4,0.55]
[1747609855425,4.08358383,2448.9,2448.4,0.55]
[1747609855581,4.08279916,2449.3,2448.5,9.209]
[1747609855936,0.814,2449.4,2448.6,9.209]
[1747609855937,4.08379956,2448.7,2448.6,9.209]
[1747609856107,4.0841672,2448.5,2448.2,9.733]
[1747609856270,4.08379956,2448.7,2448.3,9.209]
[1747609856674,4.08396634,2448.6,2448.3,9.209]
[1747609856898,4.08351554,2448.9,2448.4,2.4442]
[1747609857100,4.89674257,2449.4,2448.4,2.48503444]
[1747609857308,7.80167885,2449.8,2448.7,0.7606]
[1747609857309,0.7533,2449.8,2448.7,0.7606]
[1747609857475,4.082417,2449.6,2448.8,40.66955761]
[1747609857674,4.08274664,2449.4,2448.9,0.55]
[1747609857894,4.08274664,2449.4,2449.1,0.55]
[1747609858097,4.08223306,2449.7,2449.0,4.06695182]
[1747609858287,4.08306708,2449.2,2449.0,4.06695182]
[1747609858486,8.0,2449.9,2448.8,36.586]
[1747609858487,4.08346604,2448.9,2448.8,17.648]
[1747609858690,4.08318939,2449.1,2448.8,26.854]
[1747609858919,4.08174595,2450.0,2449.4,4.08259355]
[1747609859094,4.08188443,2449.9,2449.6,0.7606]
[1747609859283,4.08196587,2449.8,2449.7,9.206]
[1747609859483,4.08196587,2449.8,2449.7,9.2109092]
[1747609859676,0.7533,2450.6,2449.7,9.2109092]
[1747609859882,4.08179925,2449.9,2449.8,0.55]
[1747609860089,4.08179925,2449.9,2449.8,0.554909]
[1747609860519,4.08168535,2450.0,2449.8,0.554909]
[1747609860829,4.08168535,2450.0,2449.7,10.20315092]
[1747609860830,4.0821325,2449.7,2449.6,0.7606]
[1747609861012,4.08337777,2449.0,2448.7,9.172]
[1747609861181,4.0832993,2449.0,2448.9,9.174]
[1747609861778,4.08327114,2449.1,2448.9,9.174]
[1747609861985,4.0832993,2449.0,2448.9,9.174]
[1747609862183,12.08363279,2448.8,2448.2,9.174]
[1747609862380,4.08513419,2447.9,2447.8,9.174]
[1747609862885,0.05105825,2448.4,2447.8,9.174]
[1747609862886,8.0,2448.3,2447.8,9.174]
[1747609863080,4.08460717,2448.3,2447.9,0.04084679]
[1747609863324,0.756,2449.0,2448.1,0.8177]
[1747609863480,4.08387126,2448.7,2448.1,0.8177]
[1747609863684,4.08447832,2448.3,2448.1,0.8177]
[1747609864004,4.08513419,2447.9,2447.7,0.8177]
[1747609864208,4.08513419,2447.9,2447.8,9.174]
[1747609864531,4.08580183,2447.5,2447.4,9.174]
[1747609864729,4.08580183,2447.5,2447.0,9.174]
[1747609864730,4.08653404,2447.1,2447.0,9.174]
[1747609865284,4.08663669,2447.0,2446.9,0.33058872]
[1747609865497,4.08697073,2446.8,2446.7,26.815]
[1747609866114,4.08651215,2447.1,2446.7,26.815]
[1747609866302,9.168,2447.4,2446.8,2.6815]
[1747609866504,8.0,2447.3,2446.8,2.6815]
[1747609866701,4.08527031,2447.9,2447.0,0.788]
[1747609866902,0.7953,2448.0,2447.2,0.55]
[1747609867218,4.08574774,2447.6,2447.3,9.64272059]
[1747609867421,4.08514182,2447.9,2447.4,0.55]
[1747609867627,0.7953,2448.3,2447.5,0.04085072]
[1747609867797,8.0510634,2448.2,2447.0,0.788]
[1747609868127,0.7953,2447.9,2446.6,0.788]
[1747609868294,12.08496732,2448.0,2445.3,4.08944767]
[1747609868295,4.08697073,2446.8,2446.7,26.816]
[1747609868710,4.08697073,2446.8,2446.7,29.4976]
[1747609868913,4.08697073,2446.8,2446.7,26.816]
[1747609869298,4.08664511,2447.0,2446.7,26.816]
[1747609869498,4.88171547,2447.2,2446.7,26.816]
[1747609869821,4.08662824,2447.1,2446.8,0.762]
[1747609870137,4.84453421,2448.1,2447.0,0.55]
[1747609870291,4.08513419,2447.9,2447.0,0.55]
[1747609870487,4.08600839,2447.4,2447.0,0.55]
[1747609870885,12.08530108,2447.8,2447.0,0.55]
[1747609871092,4.08550992,2447.7,2447.0,0.55]
[1747609871287,0.7597,2448.1,2447.1,9.21685682]
[1747609871526,4.84453106,2448.1,2447.1,9.176]
[1747609871702,4.08630271,2447.2,2447.1,9.176]
[1747609871889,8.0,2448.0,2447.1,9.176]
[1747609872089,4.0855719,2447.7,2447.2,0.55]
[1747609872294,4.08534026,2447.8,2447.3,1.42209874]
[1747609872489,4.08537946,2447.8,2447.4,0.8289]
[1747609872726,8.0,2448.2,2447.4,0.8289]
[1747609872934,4.08451402,2448.3,2447.4,0.8289]
[1747609872935,12.08461892,2448.3,2447.4,0.8289]
[1747609873096,4.08545249,2447.8,2447.4,0.8289]
[1747609873296,4.08545249,2447.8,2447.5,0.22509967]
[1747609873511,4.89752848,2448.4,2447.6,9.21685261]
[1747609873695,4.89752848,2448.4,2447.6,9.176]
[1747609873696,4.0850648,2448.0,2447.6,9.176]
[1747609873909,4.0850648,2448.0,2447.6,26.821]
[1747609874333,4.08446677,2448.3,2447.6,17.645]
[1747609874494,4.08546799,2447.7,2447.6,17.645]
[1747609874709,4.08546799,2447.7,2447.6,26.821]
[1747609875155,12.90316799,2447.7,2447.6,9.176]
[1747609875318,4.08663669,2447.0,2446.9,17.645]
[1747609875517,6.12,2447.4,2446.9,28.69833887]
[1747609875863,4.08644655,2447.2,2446.9,28.69833887]
[1747609876313,4.08663669,2447.0,2446.9,26.821]
[1747609876511,4.08663669,2447.0,2446.9,26.82]
[1747609876744,4.08663669,2447.0,2446.9,17.645]
[1747609876944,4.08663669,2447.0,2446.9,26.82]
[1747609878036,4.0864921,2447.1,2446.9,26.82]
[1747609878037,8.0,2447.3,2446.9,26.82]
[1747609878358,4.08663669,2447.0,2446.9,26.82]
[1747609878920,4.08663669,2447.0,2446.9,9.176]
[1747609880323,4.08647582,2447.1,2446.9,9.176]
[1747609880651,4.08663669,2447.0,2446.9,9.176]
[1747609880984,4.08763897,2446.4,2446.3,0.33058872]
[1747609881158,10.20663669,2447.0,2446.5,9.176]
[1747609881159,6.12,2447.0,2446.5,9.176]
[1747609881460,8.0,2447.5,2446.6,5.43802698]
[1747609881640,4.08639982,2447.2,2446.8,0.55]
[1747609881822,4.08622101,2447.3,2447.0,0.55]
[1747609882022,4.08638168,2447.2,2447.1,9.176]
[1747609882264,4.08630271,2447.2,2447.1,9.176]
[1747609882949,4.0873937,2446.6,2446.3,11.82270706]
[1747609883124,4.08723197,2446.7,2446.4,12.12277071]
[1747609883323,4.08732343,2446.6,2446.4,12.12277071]
[1747609883568,4.08739554,2446.6,2446.4,12.12277071]
[1747609883745,4.08747189,2446.5,2446.4,12.12277071]
[1747609884126,4.08747189,2446.5,2446.4,9.43983863]
[1747609884564,12.08747189,2446.5,2446.4,0.26383863]
[1747609885825,4.08797318,2446.2,2446.1,0.33058872]
[1747609886667,12.93427958,2446.2,2446.1,0.33058872]
[1747609886853,12.88317318,2446.2,2446.1,0.33058872]
[1747609887540,12.08830744,2446.0,2445.6,9.177]
[1747609887865,4.08880892,2445.7,2445.6,9.177]
[1747609888365,6.12,2445.9,2445.6,12.6644]
[1747609888666,4.08734877,2446.6,2446.1,0.55]
[1747609888865,4.08734877,2446.6,2446.2,9.178]
[1747609889165,4.08763897,2446.4,2446.3,9.178]
[1747609890168,4.08880892,2445.7,2445.6,9.156]
[1747609890367,4.08897612,2445.6,2445.5,0.33058872]
[1747609890567,4.14009124,2445.6,2445.5,0.33058872]
[1747609890867,4.14009767,2445.6,2445.5,0.33058872]
[1747609891072,4.08897612,2445.6,2445.5,0.33058872]
[1747609893573,12.08931054,2445.4,2445.3,9.156]
[1747609894171,4.08931054,2445.4,2445.3,9.156]
[1747609895876,4.08931054,2445.4,2444.8,26.806]
[1747609895877,4.09014683,2444.9,2444.8,26.806]
[1747609896064,4.09014683,2444.9,2444.2,1.11098872]
[1747609896065,4.0911376,2444.4,2444.2,1.11098872]
[1747609896268,4.09098778,2444.4,2444.3,9.157]
[1747609896652,4.09115084,2444.3,2444.2,0.33058872]
[1747609896971,4.09141914,2444.2,2444.0,17.653]
[1747609897176,4.09148561,2444.1,2444.0,17.653]
[1747609897376,4.09218469,2443.7,2443.5,0.33058872]
[1747609897542,4.09218469,2443.7,2443.6,9.159]
[1747609897745,6.12,2444.6,2443.6,10.18599887]
[1747609897939,4.09118803,2444.3,2443.6,10.18599887]
[1747609898144,4.09118803,2444.3,2443.5,0.33058872]
[1747609898145,4.09215533,2443.7,2443.5,0.33058872]
[1747609898463,8.0,2444.2,2443.7,4.09206763]
[1747609898667,4.09134349,2444.2,2443.7,4.09204746]
[1747609898875,8.0,2444.2,2443.6,9.159]
[1747609899077,4.09201367,2443.8,2443.7,9.159]
[1747609899281,8.0,2444.2,2443.7,9.159]
[1747609899478,4.09212723,2443.8,2443.7,9.159]
[1747609901080,4.09249028,2443.5,2443.3,26.816]
[1747609901383,4.09255877,2443.5,2443.3,26.816]
[1747609902265,8.0,2443.8,2443.3,26.816]
[1747609902469,4.09215649,2443.7,2443.3,29.4976]
[1747609902668,4.09205595,2443.8,2443.3,29.4976]
[1747609902981,4.09198788,2443.8,2443.3,29.4976]
[1747609903486,4.09182045,2443.9,2443.3,17.655]
[1747609903487,0.05115245,2443.7,2443.3,17.655]
[1747609903682,4.09249028,2443.5,2443.4,9.163]
[1747609904546,12.09249028,2443.5,2443.4,9.163]
[1747609904750,4.09265777,2443.4,2443.2,9.163]
[1747609905089,4.09299279,2443.2,2443.1,9.163]
[1747609906019,6.9115,2443.5,2443.1,9.163]
[1747609906202,6.12,2443.5,2443.1,10.0793]
[1747609906404,6.12,2443.5,2443.2,0.8248]
[1747609906548,6.12,2443.5,2443.3,4.09281997]
[1747609906996,6.12,2443.5,2443.2,0.8248]
[1747609907162,6.12,2444.1,2443.3,0.55]
[1747609907363,4.09194125,2443.9,2443.4,0.54677371]
[1747609907576,20.15587564,2444.2,2443.4,0.54677371]
[1747609907783,4.09225874,2443.7,2443.3,0.55]
[1747609907980,8.0,2444.1,2443.4,9.164]
[1747609908180,4.09284171,2443.3,2442.8,4.92298176]
[1747609908494,4.09290576,2443.3,2442.9,9.164]
[1747609909155,8.0,2443.6,2442.9,9.164]
[1747609909360,4.09279908,2443.4,2442.9,9.164]
[1747609909556,4.09288514,2443.3,2442.9,9.164]
[1747609909757,4.09301394,2443.2,2442.9,9.164]
[1747609909951,4.09288691,2443.3,2442.9,9.164]
[1747609910251,4.09288691,2443.3,2442.9,11.21108108]
[1747609912518,4.09317976,2443.1,2442.9,9.164]
[1747609912709,4.09311413,2443.2,2442.9,9.164]
[1747609912909,4.09316291,2443.1,2442.9,9.164]
[1747609913109,4.09305984,2443.2,2442.9,9.164]
[1747609914219,17.149,2443.6,2442.9,9.164]
[1747609914580,4.92387056,2443.1,2442.6,17.663]
[1747609914779,0.8307,2443.1,2442.6,21.75698613]
[1747609914984,0.8307,2443.4,2443.0,4.09331073]
[1747609915185,0.8307,2443.4,2442.7,0.80473701]
[1747609915416,4.09283509,2443.3,2442.8,4.09357129]
[1747609915618,4.09271476,2443.4,2442.9,0.04093031]
[1747609915817,4.09271947,2443.4,2443.0,9.167]
[1747609915995,4.09299038,2443.3,2443.0,9.167]
[1747609916196,4.09301572,2443.2,2443.0,9.167]
[1747609916822,4.09295076,2443.3,2443.0,9.167]
[1747609917185,8.0,2443.5,2443.0,9.167]
[1747609917397,12.09256897,2443.5,2443.0,13.7795866]
[1747609917599,4.09255557,2443.5,2443.0,9.68626935]
[1747609917800,4.0913891,2444.2,2443.0,9.68626935]
[1747609917801,6.12,2444.1,2443.1,1.3138]
[1747609918001,4.09246438,2443.6,2443.1,5.40685034]
[1747609918226,4.09243241,2443.6,2443.2,9.167]
[1747609918409,4.09210436,2443.8,2443.3,5.14085356]
[1747609918601,4.09213012,2443.8,2443.3,1.04808]
[1747609918801,4.09213012,2443.8,2443.3,5.14087993]
[1747609919994,4.09207192,2443.8,2443.3,1.04808]
[1747609920217,4.09165302,2444.0,2443.2,9.167]
[1747609920524,4.09263883,2443.5,2443.2,9.167]
[1747609920697,12.09161266,2444.1,2443.2,9.167]
[1747609920905,6.12,2444.0,2443.4,0.55]
[1747609921104,4.09064689,2444.7,2443.4,0.55]
[1747609921105,6.8771,2444.5,2443.7,4.09202864]
[1747609921303,4.09149673,2444.1,2443.8,9.145]
[1747609921531,6.8771,2444.5,2443.8,9.145]
[1747609921828,4.09181049,2444.0,2443.8,9.145]
[1747609922132,4.09181049,2444.0,2443.4,4.64250637]
[1747609922133,4.09265777,2443.4,2443.3,9.41057034]
[1747609922424,4.09265777,2443.4,2443.3,0.26557034]
[1747609922824,4.09256337,2443.5,2442.9,0.753]
[1747609923028,4.09243377,2443.6,2443.3,9.145]
[1747609923198,4.09264122,2443.5,2443.3,9.145]
[1747609923385,4.09265777,2443.4,2443.3,9.145]
[1747609923596,8.0,2443.6,2443.3,9.146]
[1747609923833,4.09349543,2442.9,2442.8,17.672]
[1747609924124,4.09349543,2442.9,2442.8,26.818]
[1747609925002,4.09349543,2442.9,2442.7,0.33058872]
[1747609925202,12.95693865,2442.8,2442.7,0.33058872]
[1747609925430,8.8121,2442.8,2442.7,0.33058872]
[1747609925629,4.905763,2442.8,2442.7,0.33058872]